bitfinex/quotes_BTCUSD_20250917
["timestamp","ask_amount","ask_price","bid_price","bid_amount"]
[1758144534238,0.82198017,116020.0,116010.0,0.0001]
[1758144534454,1.64615907,116020.0,116010.0,0.0001]
[1758144534648,0.17239893,116010.0,116000.0,0.0001]
[1758144534864,0.94541422,116010.0,116000.0,0.0001]
[1758144535075,0.97537422,116010.0,116000.0,0.0001]
[1758144535297,0.51241379,116000.0,115990.0,0.0001]
[1758144535507,1.42791017,116000.0,115990.0,0.0001]
[1758144535707,1.45787017,116000.0,115990.0,0.0001]
[1758144535917,1.48377757,116000.0,115990.0,0.0001]
[1758144536550,1.47772976,116000.0,115990.0,0.0001]
[1758144536761,1.48387566,116000.0,115990.0,0.0001]
[1758144537826,1.89596511,116000.0,115990.0,0.0001]
[1758144538058,1.9120841,116000.0,115990.0,0.0001]
[1758144538235,1.49999465,116000.0,115990.0,0.0001]
[1758144538423,1.54999465,116000.0,115990.0,0.0001]
[1758144538624,0.51242865,115990.0,115980.0,0.0001]
[1758144538825,1.28557367,115990.0,115980.0,0.0001]
[1758144539045,0.17244352,115980.0,115970.0,0.00460128]
[1758144539251,0.67823433,115980.0,115970.0,0.00460128]
[1758144539518,0.68352433,115980.0,115970.0,0.00460128]
[1758144539722,0.70765433,115980.0,115970.0,0.00460128]
[1758144539969,0.70775433,115980.0,115970.0,0.00460128]
[1758144540221,1.14575343,115980.0,115970.0,0.00460128]
[1758144540432,1.14675343,115980.0,115970.0,0.00460128]
[1758144541257,1.15279266,115980.0,115970.0,0.00460128]
[1758144542683,1.49179266,115980.0,115970.0,0.00460128]
[1758144543387,1.90588211,115980.0,115970.0,0.00460128]
[1758144543611,1.50989013,115980.0,115970.0,0.0001]
[1758144544046,1.92197958,115980.0,115970.0,0.0001]
[1758144544269,1.50789013,115980.0,115970.0,0.0001]
[1758144544710,1.50989013,115980.0,115970.0,0.0001]
[1758144545213,0.51245839,115970.0,115960.0,0.0001]
[1758144545446,1.37865674,115970.0,115960.0,0.0001]
[1758144545650,1.40769674,115970.0,115960.0,0.0001]
[1758144546082,1.43361017,115970.0,115960.0,0.0001]
[1758144546316,1.84569962,115970.0,115960.0,0.0001]
[1758144546513,1.43361017,115970.0,115960.0,0.0001]
[1758144546744,1.84569962,115970.0,115960.0,0.0001]
[1758144547180,1.43361017,115970.0,115960.0,0.0001]
[1758144547410,1.03760769,115970.0,115960.0,0.0001]
[1758144547639,1.86378659,115970.0,115960.0,0.0001]
[1758144551211,0.51247326,115960.0,115950.0,0.00460414]
[1758144551411,1.71675803,115960.0,115950.0,0.00460414]
[1758144551614,0.91848913,115960.0,115950.0,0.00460414]
[1758144551819,1.76858371,115960.0,115950.0,0.00460414]
[1758144552034,1.76868371,115960.0,115950.0,0.00460414]
[1758144552907,1.76868371,115960.0,115950.0,0.00450414]
[1758144553328,1.76968371,115960.0,115950.0,0.00450414]
[1758144554720,0.94550481,115960.0,115950.0,0.00450414]
[1758144554931,1.76968371,115960.0,115950.0,0.00450414]
[1758144561368,0.17248814,115950.0,115940.0,0.0001]
[1758144561585,0.96169346,115950.0,115940.0,0.00018104]
[1758144561785,0.99073346,115950.0,115940.0,0.00018104]
[1758144562504,1.01665136,115950.0,115940.0,0.00018104]
[1758144562922,0.60456191,115950.0,115940.0,0.00018104]
[1758144563133,1.01665136,115950.0,115940.0,0.00018104]
[1758144563893,1.01735889,115950.0,115940.0,0.00018104]
[1758144565023,1.01835889,115950.0,115940.0,0.00018104]
[1758144565268,1.77015587,115950.0,115940.0,0.00018104]
[1758144565770,1.77015587,115950.0,115940.0,8.104e-05]
[1758144566429,0.17250301,115940.0,115930.0,0.0001]
[1758144566648,0.96241586,115940.0,115930.0,0.0001]
[1758144566865,0.99135586,115940.0,115930.0,0.0001]
[1758144567305,0.99145586,115940.0,115930.0,0.0001]
[1758144570004,1.01737599,115940.0,115930.0,0.0001]
[1758144570220,1.01837599,115940.0,115930.0,0.0001]
[1758144570659,1.01737599,115940.0,115930.0,0.0001]
[1758144570879,1.01837599,115940.0,115930.0,0.0001]
[1758144575103,0.99245586,115940.0,115930.0,0.0001]
[1758144576530,1.01837599,115940.0,115930.0,0.0001]
[1758144576992,1.01233676,115940.0,115930.0,0.0001]
[1758144577184,0.99624979,115940.0,115930.0,0.0001]
[1758144577403,1.00230664,115940.0,115930.0,0.0001]
[1758144577607,1.01845824,115940.0,115930.0,0.0001]
[1758144578062,1.01240139,115940.0,115930.0,0.0001]
[1758144578459,0.99624979,115940.0,115930.0,0.0001]
[1758144578597,1.01846221,115940.0,115930.0,0.0001]
[1758144579482,1.01240428,115940.0,115930.0,0.0001]
[1758144579695,1.01846731,115940.0,115930.0,0.0001]
[1758144581135,1.01847496,115940.0,115930.0,0.0001]
[1758144586229,1.01848004,115940.0,115930.0,0.0001]
[1758144600471,0.33596306,115940.0,115930.0,0.0001]
[1758144600899,0.74876004,115940.0,115930.0,0.0001]
[1758144601116,1.01844004,115940.0,115930.0,0.0001]
[1758144601553,0.56268721,115940.0,115930.0,0.02963]
[1758144602053,0.29085721,115940.0,115930.0,0.00518]
[1758144602273,0.53461708,115940.0,115930.0,0.44242698]
[1758144602526,0.17966741,115940.0,115930.0,0.61494487]
[1758144602745,0.2768444,115940.0,115930.0,0.64509677]
[1758144602969,0.0011,115940.0,115930.0,0.64509677]
[1758144604510,0.0011,115940.0,115930.0,0.73036644]
[1758144604687,0.0011,115940.0,115930.0,0.64509677]
[1758144604888,0.0011,115940.0,115930.0,0.67100938]
[1758144606203,0.0001,115940.0,115930.0,0.67100938]
[1758144609257,0.4421552,115960.0,115950.0,0.17248814]
[1758144609478,0.4422362,115960.0,115950.0,0.58738512]
[1758144609710,0.4423362,115960.0,115950.0,0.44167698]
[1758144610074,0.1726562,115960.0,115950.0,0.44167698]
[1758144610350,0.4422962,115960.0,115950.0,0.44167698]
[1758144610568,0.4422962,115960.0,115950.0,0.02898]
[1758144611817,0.4442962,115960.0,115950.0,0.02898]
[1758144614691,0.4442962,115960.0,115950.0,0.20146814]
[1758144615172,0.4442962,115960.0,115950.0,0.02898]
[1758144615833,0.4442962,115960.0,115950.0,0.20146814]
[1758144616094,0.1746562,115960.0,115950.0,0.02898]
[1758144616307,0.4442962,115960.0,115950.0,0.02898]
[1758144616536,0.4442962,115960.0,115950.0,0.20146814]
[1758144618947,0.002181,115960.0,115950.0,0.64441702]
[1758144619180,0.002081,115960.0,115950.0,0.64441702]
[1758144619396,0.002081,115960.0,115950.0,0.67032578]
[1758144620061,0.002081,115960.0,115950.0,0.2575288]
[1758144620269,0.002081,115960.0,115950.0,0.67032578]
[1758144621861,0.002081,115960.0,115950.0,1.18927312]
[1758144622049,0.002081,115960.0,115950.0,0.75559545]
[1758144622981,8.1e-05,115960.0,115950.0,1.16839243]
[1758144624797,8.1e-05,115960.0,115950.0,0.75559545]
[1758144626015,8.1e-05,115960.0,115950.0,0.75529432]
[1758144627667,8.1e-05,115960.0,115950.0,1.16779017]
[1758144627872,8.1e-05,115960.0,115950.0,0.75529432]
[1758144628110,8.1e-05,115960.0,115950.0,1.16779017]
[1758144628357,8.1e-05,115960.0,115950.0,0.75529432]
[1758144628633,8.1e-05,115960.0,115950.0,1.16779017]
[1758144629060,8.1e-05,115960.0,115950.0,0.75529432]
[1758144629777,8.1e-05,115960.0,115950.0,0.34279847]
[1758144629993,8.1e-05,115960.0,115950.0,0.75529432]
[1758144639348,8.1e-05,115960.0,115950.0,1.16779017]
[1758144641102,8.1e-05,115960.0,115950.0,0.75529432]
[1758144646607,8.1e-05,115960.0,115950.0,1.59305984]
[1758144647228,8.1e-05,115960.0,115950.0,1.99305984]
[1758144649680,8.1e-05,115960.0,115950.0,1.99605984]
[1758144655132,8.1e-05,115960.0,115950.0,2.26557984]
[1758144657495,8.1e-05,115960.0,115950.0,1.44058814]
[1758144657709,8.1e-05,115960.0,115950.0,2.26557984]
[1758144658572,8.1e-05,115960.0,115950.0,1.44058814]
[1758144658817,8.1e-05,115960.0,115950.0,1.85308399]
[1758144659045,8.1e-05,115960.0,115950.0,2.26557984]
[1758144659678,8.1e-05,115960.0,115950.0,1.85308399]
[1758144659857,8.1e-05,115960.0,115950.0,2.26557984]
[1758144660499,8.1e-05,115960.0,115950.0,1.85308399]
[1758144661052,8.1e-05,115960.0,115950.0,2.26557984]
[1758144661264,8.1e-05,115960.0,115950.0,1.44058814]
[1758144661449,8.1e-05,115960.0,115950.0,2.26557984]
[1758144670862,8.1e-05,115960.0,115950.0,2.35873984]
[1758144679017,8.1e-05,115960.0,115950.0,0.63186657]
[1758144679226,0.002211,115960.0,115950.0,0.97616242]
[1758144679417,0.002211,115960.0,115950.0,1.34631432]
[1758144679825,0.58718011,115960.0,115950.0,0.4753969]
[1758144680038,0.61326011,115960.0,115950.0,0.44948814]
[1758144680247,0.20076426,115960.0,115950.0,0.44738814]
[1758144680452,0.61326011,115960.0,115950.0,0.44738814]
[1758144680674,0.61326011,115960.0,115950.0,0.47454004]
[1758144681133,0.61326011,115960.0,115950.0,0.2719]
[1758144681347,0.61326011,115960.0,115950.0,0.0001]
[1758144681598,0.61326011,115960.0,115950.0,0.0011]
[1758144681809,1.02575596,115960.0,115950.0,0.0011]
[1758144682223,1.02575596,115960.0,115950.0,0.0001]
[1758144683370,1.38298563,115960.0,115950.0,0.0001]
[1758144684220,0.55899393,115960.0,115950.0,0.0001]
[1758144684420,1.38398563,115960.0,115950.0,0.0001]
[1758144686750,1.38408563,115960.0,115950.0,0.0001]
[1758144687810,0.97183606,115960.0,115950.0,0.0001]
[1758144690142,0.97643891,115960.0,115950.0,0.0001]
[1758144690357,1.31643891,115960.0,115950.0,0.0001]
[1758144691020,1.31643891,115960.0,115940.0,0.0001]
[1758144691021,0.17248814,115950.0,115940.0,0.0001]
[1758144691226,0.67049994,115950.0,115940.0,0.0001]
[1758144691447,0.69880994,115950.0,115940.0,0.0001]
[1758144693220,1.11155207,115950.0,115940.0,0.0001]
[1758144693646,0.69880994,115950.0,115940.0,0.0001]
[1758144694081,0.69980994,115950.0,115940.0,0.0001]
[1758144694290,0.69880994,115950.0,115940.0,0.0001]
[1758144694519,0.70484907,115950.0,115940.0,0.0001]
[1758144694725,0.70684907,115950.0,115940.0,0.0001]
[1758144696545,1.1195912,115950.0,115940.0,0.0001]
[1758144696744,0.17250301,115940.0,115930.0,0.0001]
[1758144696982,0.94845394,115940.0,115930.0,0.0001]
[1758144697191,0.97820394,115940.0,115930.0,0.0001]
[1758144698483,0.97920394,115940.0,115930.0,0.0001]
[1758144698691,1.07240394,115940.0,115930.0,0.0001]
[1758144698913,1.08849843,115940.0,115930.0,0.0001]
[1758144699137,1.11442021,115940.0,115930.0,0.0001]
[1758144703948,0.4039563,115940.0,115930.0,0.0001]
[1758144704138,0.6755563,115940.0,115930.0,0.17261789]
[1758144704594,0.22848329,115940.0,115930.0,0.17467789]
[1758144704760,0.29479362,115940.0,115930.0,0.17781789]
[1758144704970,0.29479362,115940.0,115930.0,0.20276789]
[1758144705738,0.46729663,115940.0,115930.0,0.20276789]
[1758144705944,0.46930663,115940.0,115930.0,0.17781789]
[1758144706117,0.46930663,115940.0,115930.0,0.17467789]
[1758144707547,0.49407663,115940.0,115930.0,0.17467789]
[1758144707966,0.32157362,115940.0,115930.0,0.17467789]
[1758144708251,0.31553449,115940.0,115930.0,0.17467789]
[1758144708433,0.32153522,115940.0,115930.0,0.17467789]
[1758144708679,0.05001522,115940.0,115930.0,0.17467789]
[1758144708886,0.49395823,115940.0,115930.0,0.17467789]
[1758144710174,0.5726063,115940.0,115930.0,0.17467789]
[1758144710375,0.90967036,115940.0,115930.0,0.0001]
[1758144710583,0.90967036,115940.0,115930.0,0.17261789]
[1758144711497,0.90967036,115940.0,115930.0,0.0001]
[1758144711709,0.99494003,115940.0,115930.0,0.0001]
[1758144712170,0.99495004,115940.0,115930.0,0.0001]
[1758144717341,0.99500063,115940.0,115930.0,0.0001]
[1758144720233,0.99500795,115940.0,115930.0,0.0001]
[1758144720448,0.58226582,115940.0,115930.0,0.0001]
[1758144720661,0.99500795,115940.0,115930.0,0.0001]
[1758144725840,0.70742287,115940.0,115930.0,0.0001]
[1758144726040,0.99503536,115940.0,115930.0,0.0001]
[1758144727838,0.58229323,115940.0,115930.0,0.0001]
[1758144728058,0.99503536,115940.0,115930.0,0.0001]
[1758144730723,0.99503751,115940.0,115930.0,0.0001]
[1758144732958,0.58229538,115940.0,115930.0,0.0001]
[1758144733218,0.99503751,115940.0,115930.0,0.0001]
[1758144734502,0.97569287,115940.0,115930.0,0.00212]
[1758144734741,0.99187051,115940.0,115930.0,0.00212]
[1758144734946,0.99488051,115940.0,115930.0,0.0001]
[1758144736665,0.99488143,115940.0,115930.0,0.0001]
[1758144737646,0.5543193,115940.0,115930.0,0.00212]
[1758144737841,0.5750593,115940.0,115930.0,0.00531]
[1758144738144,0.96505143,115940.0,115930.0,0.02908]
[1758144738363,0.98994143,115940.0,115930.0,0.00212]
[1758144739028,0.99295143,115940.0,115930.0,0.0001]
[1758144739251,0.99295284,115940.0,115930.0,0.0001]
[1758144740770,0.72175284,115940.0,115930.0,0.0001]
[1758144740952,0.99311284,115940.0,115930.0,0.0001]
[1758144743191,0.99311767,115940.0,115930.0,0.0001]
[1758144746038,0.58037554,115940.0,115930.0,0.0001]
[1758144746348,0.99311767,115940.0,115930.0,0.0001]
[1758144747633,1.09411285,115940.0,115930.0,0.0001]
[1758144747846,1.50725906,115940.0,115930.0,0.0001]
[1758144748043,0.68137072,115940.0,115930.0,0.0001]
[1758144748250,1.50725906,115940.0,115930.0,0.0001]
[1758144753608,0.17251789,115930.0,115920.0,0.0001]
[1758144753882,0.94806979,115930.0,115920.0,0.0001]
[1758144754083,0.95011979,115930.0,115920.0,0.0001]
[1758144754268,0.97720979,115930.0,115920.0,0.0001]
[1758144754718,0.97730979,115930.0,115920.0,0.0001]
[1758144756547,2.1593744,115930.0,115920.0,0.0001]
[1758144756754,0.17253278,115920.0,115910.0,0.0001]
[1758144756926,1.10592663,115920.0,115910.0,0.0001]
[1758144757121,1.13506663,115920.0,115910.0,0.0001]
[1758144757570,1.13852333,115920.0,115910.0,0.0001]
[1758144757771,1.13862333,115920.0,115910.0,0.0001]
[1758144758002,1.13862333,115920.0,115910.0,0.00018107]
[1758144758915,1.13962333,115920.0,115910.0,0.00018107]
[1758144760197,1.13960603,115920.0,115910.0,0.00018107]
[1758144761905,0.31371769,115920.0,115910.0,0.00018107]
[1758144762162,1.13960603,115920.0,115910.0,0.00018107]
[1758144766233,1.5525502,115920.0,115910.0,0.00018107]
[1758144766840,1.47960603,115920.0,115910.0,0.00018107]
[1758144767821,1.4795871,115920.0,115910.0,0.00018107]
[1758144768246,1.4795871,115920.0,115910.0,8.107e-05]
[1758144768850,1.7514671,115920.0,115910.0,8.107e-05]
[1758144771104,0.92557876,115920.0,115910.0,8.107e-05]
[1758144771352,1.7514671,115920.0,115910.0,8.107e-05]
[1758144771859,1.75146521,115920.0,115910.0,8.107e-05]
[1758144772597,1.47958521,115920.0,115910.0,8.107e-05]
[1758144772828,1.75146521,115920.0,115910.0,8.107e-05]
[1758144773669,1.75146653,115920.0,115910.0,8.107e-05]
[1758144781100,1.84470653,115920.0,115910.0,8.107e-05]
[1758144782397,1.57282653,115920.0,115910.0,8.107e-05]
[1758144782536,1.84442653,115920.0,115910.0,8.107e-05]
[1758144790679,1.84442653,115920.0,115910.0,0.00018107]
[1758144792453,1.84443724,115920.0,115910.0,0.00018107]
[1758144792654,1.84448529,115920.0,115910.0,0.00018107]
[1758144809882,1.43163145,115920.0,115910.0,0.00018107]
[1758144816855,1.01859695,115920.0,115910.0,0.00018107]
[1758144817044,1.40454145,115920.0,115910.0,0.00233107]
[1758144817263,1.40454145,115920.0,115910.0,0.00528107]
[1758144817468,1.42887145,115920.0,115910.0,0.00233107]
[1758144817680,1.43204145,115920.0,115910.0,0.00018107]
[1758144824238,1.43204263,115920.0,115910.0,0.00018107]
[1758144824562,1.16044263,115920.0,115910.0,0.00018107]
[1758144824764,1.43100263,115920.0,115910.0,0.00018107]
[1758144827237,1.42783263,115920.0,115910.0,0.00233107]
[1758144827644,1.43100263,115920.0,115910.0,0.00018107]
[1758144828459,0.02335898,115920.0,115910.0,1.05860963]
[1758144828672,0.0011,115920.0,115910.0,1.49958897]
[1758144828889,0.001,115920.0,115910.0,1.30729377]
[1758144829099,0.001,115920.0,115910.0,1.24203163]
[1758144829307,0.001,115920.0,115910.0,1.07149229]
[1758144829521,0.001,115920.0,115910.0,0.67149229]
[1758144829732,0.21332206,115940.0,115930.0,0.17251789]
[1758144829953,0.21342206,115940.0,115930.0,0.20217789]
[1758144830148,0.21342206,115940.0,115930.0,0.02966]
[1758144830357,0.20735057,115940.0,115930.0,0.20217789]
[1758144830551,0.20735057,115940.0,115930.0,0.02966]
[1758144830758,0.20735057,115940.0,115930.0,0.00215]
[1758144830759,0.73208474,115940.0,115930.0,0.00215]
[1758144831351,0.31905024,115940.0,115930.0,0.00225]
[1758144831559,0.29472024,115940.0,115930.0,0.02976]
[1758144831770,0.29472024,115940.0,115930.0,0.04587436]
[1758144832425,1.07525474,115940.0,115930.0,0.01621436]
[1758144832646,1.08130737,115940.0,115930.0,0.01621436]
[1758144832840,1.10722737,115940.0,115930.0,0.01621436]
[1758144833176,1.10117474,115940.0,115930.0,0.01621436]
[1758144833598,1.10722595,115940.0,115930.0,0.01621436]
[1758144833851,1.10722595,115940.0,115930.0,0.0001]
[1758144834255,1.10117474,115940.0,115930.0,0.0001]
[1758144834439,1.10117474,115940.0,115930.0,0.01620353]
[1758144835976,1.10117474,115940.0,115930.0,0.01610353]
[1758144835977,1.07505474,115940.0,115930.0,0.01610353]
[1758144836434,1.34545474,115940.0,115930.0,0.01610353]
[1758144837304,1.35150276,115940.0,115930.0,0.01610353]
[1758144837757,0.51251789,115930.0,115920.0,0.02466]
[1758144837939,0.69102756,115930.0,115920.0,0.0407604]
[1758144838144,0.69307756,115930.0,115920.0,0.0427904]
[1758144838341,0.71784756,115930.0,115920.0,0.0427904]
[1758144838569,0.69307756,115930.0,115920.0,0.0457804]
[1758144838999,0.69317756,115930.0,115920.0,0.0457804]
[1758144839160,0.69317756,115930.0,115920.0,0.0467804]
[1758144839358,0.69317756,115930.0,115920.0,0.0222204]
[1758144839631,0.69317756,115930.0,115920.0,0.0470504]
[1758144839768,0.69112756,115930.0,115920.0,0.0470504]
[1758144839979,1.10621206,115930.0,115920.0,0.0192304]
[1758144840173,1.13409206,115930.0,115920.0,0.0172004]
[1758144840698,1.40138206,115930.0,115920.0,0.0192304]
[1758144842049,1.37972206,115930.0,115920.0,0.0172004]
[1758144842273,1.41054024,115930.0,115920.0,0.0172004]
[1758144842846,1.42774064,115930.0,115920.0,0.0172004]
[1758144843254,1.15527064,115930.0,115920.0,0.0171004]
[1758144843433,1.42567064,115930.0,115920.0,0.0171004]
[1758144843921,1.42567064,115930.0,115920.0,0.001]
[1758144845480,0.51253278,115920.0,115910.0,0.00018107]
[1758144845702,1.01083695,115920.0,115910.0,0.00018107]
[1758144845907,1.03873695,115920.0,115910.0,0.00018107]
[1758144846110,1.06466132,115920.0,115910.0,0.00018107]
[1758144846306,1.07081132,115920.0,115910.0,8.107e-05]
[1758144846508,1.34121132,115920.0,115910.0,8.107e-05]
[1758144846748,1.34121146,115920.0,115910.0,8.107e-05]
[1758144846995,1.34221146,115920.0,115910.0,8.107e-05]
[1758144847397,1.75524596,115920.0,115910.0,8.107e-05]
[1758144848638,1.75424596,115920.0,115910.0,8.107e-05]
[1758144848854,1.73132159,115920.0,115910.0,8.107e-05]
[1758144849310,1.72832159,115920.0,115910.0,8.107e-05]
[1758144849520,1.72932243,115920.0,115910.0,8.107e-05]
[1758144849749,1.77932243,115920.0,115910.0,8.107e-05]
[1758144849989,1.82932243,115920.0,115910.0,8.107e-05]
[1758144852377,1.55892243,115920.0,115910.0,8.107e-05]
[1758144852588,1.82932243,115920.0,115910.0,8.107e-05]
[1758144853579,1.55892243,115920.0,115910.0,8.107e-05]
[1758144853781,1.82932243,115920.0,115910.0,8.107e-05]
[1758144854511,1.82327145,115920.0,115910.0,8.107e-05]
[1758144854751,1.82931855,115920.0,115910.0,8.107e-05]
[1758144858685,1.55891855,115920.0,115910.0,8.107e-05]
[1758144858884,1.82935855,115920.0,115910.0,8.107e-05]
[1758144861448,2.27835855,115920.0,115910.0,8.107e-05]
[1758144864580,2.29447922,115920.0,115910.0,8.107e-05]
[1758144869951,2.70789097,115920.0,115910.0,8.107e-05]
[1758144876693,2.29473072,115920.0,115910.0,8.107e-05]
[1758144877791,2.38568121,115920.0,115910.0,8.107e-05]
[1758144877980,2.29478121,115920.0,115910.0,8.107e-05]
[1758144878395,2.29478623,115920.0,115910.0,8.107e-05]
[1758144880595,2.29480836,115920.0,115910.0,8.107e-05]
[1758144881102,2.29444036,115920.0,115910.0,8.107e-05]
[1758144885753,1.19767986,115920.0,115910.0,8.107e-05]
[1758144885965,2.29440036,115920.0,115910.0,8.107e-05]
[1758144889274,2.24440036,115920.0,115910.0,8.107e-05]
[1758144889467,1.00017986,115920.0,115910.0,0.02794107]
[1758144889712,1.75334011,115920.0,115910.0,0.02794107]
[1758144890129,2.16650036,115920.0,115910.0,0.02794107]
[1758144894479,2.16650257,115920.0,115910.0,0.02794107]
[1758144897696,1.34018207,115920.0,115910.0,0.02794107]
[1758144897897,2.16650257,115920.0,115910.0,0.02794107]
[1758144898335,1.34018207,115920.0,115910.0,0.02794107]
[1758144898513,2.16650257,115920.0,115910.0,0.02794107]
[1758144906154,1.48294232,115920.0,115910.0,0.02794107]
[1758144906366,1.75326232,115920.0,115910.0,0.02794107]
[1758144906735,1.34010207,115920.0,115910.0,0.02794107]
[1758144906947,1.75326232,115920.0,115910.0,0.02794107]
[1758144907160,1.34010207,115920.0,115910.0,0.02794107]
[1758144907358,1.75326232,115920.0,115910.0,0.02794107]
[1758144909230,1.77918734,115920.0,115910.0,0.02794107]
[1758144917917,1.77918692,115920.0,115910.0,0.02794107]
[1758144918290,1.77918755,115920.0,115910.0,0.02794107]
[1758144920427,2.1923478,115920.0,115910.0,0.02794107]
[1758144921418,1.77918755,115920.0,115910.0,0.02794107]
[1758144923031,1.33018755,115920.0,115910.0,0.02794107]
[1758144924602,1.7433478,115920.0,115910.0,0.02792107]
[1758144927325,1.7433478,115920.0,115910.0,0.00516107]
[1758144927898,1.7433478,115920.0,115910.0,0.02886107]
[1758144928640,1.7433478,115920.0,115910.0,0.00516107]
[1758144930141,1.7433478,115920.0,115910.0,0.02886107]
[1758144931316,1.7433478,115920.0,115910.0,0.00516107]
[1758144931715,1.7433478,115920.0,115910.0,0.02886107]
[1758144931915,1.33003874,115920.0,115910.0,0.02886107]
[1758144933974,1.33003874,115920.0,115910.0,0.00516107]
[1758144934377,1.33003874,115920.0,115910.0,0.02869107]
[1758144934691,1.05971874,115920.0,115910.0,0.00516107]
[1758144934939,1.32995874,115920.0,115910.0,0.00516107]
[1758144939511,1.32995874,115920.0,115910.0,0.02869107]
[1758144940779,1.32996298,115920.0,115910.0,0.02869107]
[1758144942722,1.32996298,115920.0,115910.0,0.00516107]
[1758144943272,1.33212298,115920.0,115910.0,0.00216107]
[1758144943704,1.33212298,115920.0,115910.0,0.00519107]
[1758144943907,1.33212309,115920.0,115910.0,0.00519107]
[1758144944288,1.32996309,115920.0,115910.0,0.00519107]
[1758144946033,1.33212309,115920.0,115910.0,0.00519107]
[1758144946893,0.91695165,115920.0,115910.0,0.00519107]
[1758144947097,1.32996309,115920.0,115910.0,0.00519107]
[1758144949366,1.33212309,115920.0,115910.0,0.00519107]
[1758144949552,1.33213312,115920.0,115910.0,0.00519107]
[1758144950575,1.42537312,115920.0,115910.0,0.00519107]
[1758144952869,1.42537316,115920.0,115910.0,0.00519107]
[1758144956940,1.42537311,115920.0,115910.0,0.00519107]
[1758144961998,1.42321311,115920.0,115910.0,0.00519107]
[1758144963740,1.42528311,115920.0,115910.0,0.00519107]
[1758144964737,1.44831311,115920.0,115910.0,0.00519107]
[1758144965124,1.17807311,115920.0,115910.0,0.00519107]
[1758144965389,1.42516311,115920.0,115910.0,0.00519107]
[1758144965589,1.01215167,115920.0,115910.0,0.00519107]
[1758144965864,0.74203167,115920.0,115910.0,0.00519107]
[1758144966002,1.01215167,115920.0,115910.0,0.00519107]
[1758144967284,1.03518167,115920.0,115910.0,0.02835107]
[1758144967872,1.01215167,115920.0,115910.0,0.00519107]
[1758144970496,1.42516311,115920.0,115910.0,0.00519107]
[1758144970687,1.42309311,115920.0,115910.0,0.00519107]
[1758144970893,1.01008167,115920.0,115910.0,0.02835107]
[1758144971776,0.73996167,115920.0,115910.0,0.02835107]
[1758144971995,0.64415665,115920.0,115910.0,0.63116493]
[1758144972219,0.64415665,115920.0,115910.0,0.22682041]
[1758144973078,0.64415665,115920.0,115910.0,0.22692041]
[1758144974479,0.3866822,115920.0,115910.0,0.63993185]
[1758144977475,0.55921498,115920.0,115910.0,0.22692041]
[1758144977690,0.55921498,115920.0,115910.0,0.63993185]
[1758144977895,0.55920836,115920.0,115910.0,0.63993185]
[1758144978326,0.27293767,115920.0,115910.0,0.63993185]
[1758144978535,0.37048489,115920.0,115910.0,0.63993185]
[1758144980149,0.54301767,115920.0,115910.0,0.63993185]
[1758144980372,0.37048489,115920.0,115910.0,0.63993185]
[1758144981315,0.54301767,115920.0,115910.0,0.63993185]
[1758144982163,0.10040489,115920.0,115910.0,0.63993185]
[1758144982381,0.37044489,115920.0,115910.0,0.63993185]
[1758144983165,0.27720489,115920.0,115910.0,0.63993185]
[1758144985580,0.27114,115920.0,115910.0,0.63993185]
[1758144988668,0.0011,115920.0,115910.0,0.63993185]
[1758144988898,0.2711,115920.0,115910.0,0.63993185]
[1758144993890,0.2711,115920.0,115910.0,0.63973916]
[1758144999300,0.0011,115920.0,115910.0,0.63973916]
[1758144999481,0.27106,115920.0,115910.0,0.63973916]
[1758145003224,0.27102,115920.0,115910.0,0.63973916]
[1758145003430,0.0011,115920.0,115910.0,0.63973916]
[1758145003632,0.27102,115920.0,115910.0,0.63973916]
[1758145005814,0.27002,115920.0,115910.0,0.63973916]
[1758145007437,0.0001,115920.0,115910.0,0.63973916]
[1758145013753,0.27594338,115930.0,115920.0,0.17253278]
[1758145013969,0.27594338,115930.0,115920.0,0.58535153]
[1758145014169,0.26988,115930.0,115920.0,0.61455153]
[1758145014577,0.26998,115930.0,115920.0,0.64046934]
[1758145015307,0.27098,115930.0,115920.0,0.64046934]
[1758145015638,0.27098,115930.0,115920.0,0.64056934]
[1758145016083,0.44349789,115930.0,115920.0,0.22775059]
[1758145016228,0.44956432,115930.0,115920.0,0.64056934]
[1758145017349,0.44956481,115930.0,115920.0,0.64056934]
[1758145018110,0.44349789,115930.0,115920.0,0.64056934]
[1758145019352,0.44956611,115930.0,115920.0,0.64056934]
[1758145020613,0.44956611,115930.0,115920.0,0.22775059]
[1758145021030,0.44956611,115930.0,115920.0,0.64056934]
[1758145021443,0.44956611,115930.0,115920.0,0.22775059]
[1758145021643,0.47657611,115930.0,115920.0,0.02797781]
[1758145021861,0.86441486,115930.0,115920.0,0.02601781]
[1758145022068,0.89240486,115930.0,115920.0,0.02601781]
[1758145023320,0.47958611,115930.0,115920.0,0.02601781]
[1758145023531,0.89240486,115930.0,115920.0,0.02601781]
[1758145025400,0.47958611,115930.0,115920.0,0.02601781]
[1758145026585,0.47657611,115930.0,115920.0,0.02811781]
[1758145026981,0.47973611,115930.0,115920.0,0.02811781]
[1758145029081,0.47657611,115930.0,115920.0,0.02811781]
[1758145029281,0.47657611,115930.0,115920.0,0.0022]
[1758145029486,0.47973611,115930.0,115920.0,0.0001]
[1758145031431,0.89255486,115930.0,115920.0,0.0001]
[1758145035091,0.89255488,115930.0,115920.0,0.0001]
[1758145035423,0.86441488,115930.0,115920.0,0.0022]
[1758145035832,0.86757488,115930.0,115920.0,0.0001]
[1758145036034,0.89019488,115930.0,115920.0,0.0001]
[1758145037806,0.88703488,115930.0,115920.0,0.0022]
[1758145038007,0.89019488,115930.0,115920.0,0.0022]
[1758145038211,0.89019488,115930.0,115920.0,0.0001]
[1758145039747,0.47737613,115930.0,115920.0,0.0001]
[1758145039945,0.88703488,115930.0,115920.0,0.0022]
[1758145042577,0.47737613,115930.0,115920.0,0.0001]
[1758145042757,0.89019488,115930.0,115920.0,0.0001]
[1758145043913,0.88703488,115930.0,115920.0,0.0022]
[1758145044347,0.89019488,115930.0,115920.0,0.0022]
[1758145045830,0.86441488,115930.0,115920.0,0.0022]
[1758145046948,0.88703488,115930.0,115920.0,0.0022]
[1758145048810,0.47421613,115930.0,115920.0,0.0022]
[1758145049837,0.88703488,115930.0,115920.0,0.0022]
[1758145051239,0.47421613,115930.0,115920.0,0.0022]
[1758145051422,0.88703488,115930.0,115920.0,0.0022]
[1758145052444,0.47421613,115930.0,115920.0,0.17473278]
[1758145052653,0.86441488,115930.0,115920.0,0.17473278]
[1758145052947,0.86441488,115930.0,115920.0,0.0022]
[1758145053880,0.45159613,115930.0,115920.0,0.0022]
[1758145054029,0.47642613,115930.0,115920.0,0.0022]
[1758145054637,0.45159613,115930.0,115920.0,0.0022]
[1758145056190,0.45139613,115930.0,115920.0,0.0022]
[1758145059126,0.45139613,115930.0,115920.0,0.17473278]
[1758145059719,0.44936613,115930.0,115920.0,0.17793278]
[1758145059945,0.44936613,115930.0,115920.0,0.0054]
[1758145060356,0.45146613,115930.0,115920.0,0.17793278]